fUSD/lending_fUSD_20250506
["ID","MTS","AMOUNT","RATE_DAILY","PERIOD"]
[360138718,1746563486515,-200.0,0.00042867,2]
[360138719,1746563486525,-200.0,0.00042867,2]
[360138720,1746563486534,-200.0,0.00042867,2]
[360138721,1746563486544,-200.0,0.00042867,2]
[360138722,1746563486553,-200.0,0.00042867,2]
[360138723,1746563486563,-200.0,0.00042867,2]
[360138724,1746563486572,-200.0,0.00042867,2]
[360138725,1746563486582,-200.0,0.00042867,2]
[360138726,1746563486592,-200.0,0.00042867,2]
[360138727,1746563486706,-200.0,0.00042867,2]
[360138728,1746563486717,-200.0,0.00042867,2]
[360138729,1746563486727,-200.0,0.00042867,2]
[360138730,1746563486736,-200.0,0.00042867,2]
[360138731,1746563486747,-200.0,0.00042867,2]
[360138732,1746563486757,-200.0,0.00042867,2]
[360138733,1746563486767,-200.0,0.00042867,2]
[360138734,1746563486776,-329.0,0.00042867,2]
[360138735,1746563486786,-200.0,0.00042867,13]
[360138736,1746563486797,-200.0,0.00042867,13]
[360138737,1746563486806,-200.0,0.00042867,13]
[360138738,1746563486815,-200.0,0.00042867,13]
[360138739,1746563486825,-200.0,0.00042867,13]
[360138740,1746563486834,-200.0,0.00042867,13]
[360138741,1746563486844,-202.0,0.00042867,13]
[360138742,1746563486853,-200.0,0.00042867,13]
[360138743,1746563486863,-754.21572,0.00042888,30]
[360138744,1746563486877,-150.0,0.00042893,30]
[360138745,1746563486886,-150.0,0.00042897,30]
[360138746,1746563486896,-150.0,0.00042909,30]
[360138747,1746563486905,-150.0,0.00042953,30]
[360138748,1746563486915,-150.0,0.00042986,2]
[360138749,1746563486924,-258.39446148,0.00042988,60]
[360138750,1746563486934,-150.0,0.00042998,30]
[360138751,1746563486946,-50000.0,0.00043,43]
[360138752,1746563486957,-250.090988,0.00043,14]
[360138753,1746563486966,-250.0,0.00043,2]
[360138754,1746563486975,-569.83911111,0.00043,120]
[360138755,1746563486985,-2900.0,0.00043,120]
[360138756,1746563486995,-1813.91033666,0.00043,120]
[360138757,1746563487005,-1000.0,0.00043,120]
[360138758,1746563487014,-205.0,0.00043,30]
[360138759,1746563487028,-213.73,0.00043,120]
[360138760,1746563487037,-307.08,0.00043,120]
[360138761,1746563487046,-900.0,0.00043,2]
[360138762,1746563487056,-6207.21666037,0.00043,120]
[360138763,1746563487066,-150.0,0.00043009,30]
[360138764,1746563487075,-150.0,0.00043014,30]
[360138765,1746563487084,-150.0,0.00043014,30]
[360138766,1746563487093,-150.0,0.00043041,120]
[360138767,1746563487102,-150.0,0.00043045,30]
[360138768,1746563487112,-150.0,0.00043045,30]
[360138769,1746563487121,-150.0,0.00043045,30]
[360138770,1746563487130,-150.0,0.00043066,30]
[360138771,1746563487139,-754.21572,0.00043088,30]
[360138772,1746563487149,-384.63394623,0.00043093,2]
[360138773,1746563487159,-222.22222,0.000431,120]
[360138774,1746563487168,-160.0,0.000431,70]
[360138775,1746563487177,-150.0,0.00043102,30]
[360138776,1746563487187,-150.0,0.00043122,30]
[360138777,1746563487196,-150.0,0.00043123,2]
[360138778,1746563487206,-150.0,0.00043178,30]
[360138779,1746563487215,-150.0,0.00043182,30]
[360138780,1746563487224,-1000.0,0.000432,120]
[360138781,1746563487233,-1157679.60241148,0.000432,30]
[360138782,1746563487243,-150.0,0.00043207,30]
[360138783,1746563487254,-150.0,0.00043235,30]
[360138784,1746563487263,-150.0,0.0004326,2]
[360138785,1746563487272,-263.72,0.00043287,120]
[360138786,1746563487282,-9999.99999903,0.00043287,120]
[360138787,1746563487291,-754.21572,0.00043288,30]
[360138788,1746563487300,-150.0,0.00043291,30]
[360138789,1746563487310,-150.0,0.00043312,30]
[360138790,1746563487320,-150.0,0.00043319,30]
[360138791,1746563487329,-150.0,0.00043348,30]
[360138792,1746563487341,-150.0,0.00043361,30]
[360138793,1746563487350,-150.0,0.00043361,30]
[360138794,1746563487359,-150.0,0.00043397,2]
[360138795,1746563487369,-1000.0,0.000434,120]
[360138796,1746563487378,-150.0,0.00043404,30]
[360138797,1746563487389,-2825.884903,0.00043411,7]
[360138798,1746563487398,-1435.393832,0.00043411,7]
[360138799,1746563487408,-3778.8896494,0.00043411,7]
[360138800,1746563487417,-150.0,0.00043417,30]
[360138801,1746563487427,-150.0,0.00043427,120]
[360138802,1746563487436,-3000.0,0.00043451,60]
[360138803,1746563487446,-500.0,0.00043451,60]
[360138804,1746563487456,-150.0,0.00043455,30]
[360138805,1746563487466,-150.0,0.00043455,30]
[360138806,1746563487476,-150.0,0.00043455,30]
[360138807,1746563487486,-150.0,0.0004346,30]
[360138808,1746563487495,-754.21572,0.00043488,30]
[360138809,1746563487505,-150.0,0.00043517,30]
[360138810,1746563487514,-150.0,0.00043522,30]
[360138811,1746563487524,-150.0,0.00043534,2]
[360138812,1746563487534,-150.0,0.00043573,30]
[360138813,1746563487543,-2000.0,0.00043588,30]
[360138814,1746563487552,-150.0,0.00043592,30]
[360138815,1746563487562,-150.0,0.00043592,30]
[360138816,1746563487571,-2514.0524,0.00043595,7]
[360138817,1746563487581,-788.84,0.000436,120]
[360138818,1746563487590,-1295.8,0.000436,120]
[360138819,1746563487599,-2655.38,0.000436,120]
[360138820,1746563487609,-376.60092114,0.000436,2]
[360138821,1746563487618,-1200.0,0.000436,2]
[360138822,1746563487628,-522.00860838,0.000436,2]
[360138823,1746563487638,-150.0,0.00043619,2]
[360138824,1746563487647,-150.0,0.00043627,30]
[360138825,1746563487657,-150.0,0.00043629,30]
[360138826,1746563487666,-2000.0,0.00043636,120]
[360138827,1746563487675,-150.0,0.00043671,2]
[360138828,1746563487684,-150.0,0.00043686,30]
[360138829,1746563487693,-754.21572,0.00043688,30]
[360138830,1746563487702,-1271.41146712,0.000437,120]
[360138831,1746563487712,-150.0,0.00043707,30]
[360138832,1746563487721,-150.0,0.00043707,30]
[360138833,1746563487731,-150.0,0.00043728,30]
[360138834,1746563487741,-150.0,0.00043732,30]
[360138835,1746563487751,-150.0,0.00043742,30]
[360138836,1746563487760,-3237.2438,0.0004378,40]
[360138837,1746563487769,-150.0,0.00043799,30]
[360138838,1746563487778,-483.63147924,0.000438,30]
[360138839,1746563487788,-1988.699,0.000438,90]
[360138840,1746563487798,-224.33,0.000438,120]
[360138841,1746563487807,-2000.0,0.000438,2]
[360138842,1746563487817,-199.34901048,0.00043808,2]
[360138843,1746563487826,-2176.79,0.00043835,2]
[360138844,1746563487836,-2176.79,0.00043835,2]
[360138845,1746563487847,-2176.79,0.00043835,2]
[360138846,1746563487856,-2176.79,0.00043835,2]
[360138847,1746563487865,-2176.79,0.00043835,2]
[360138848,1746563487874,-2176.79,0.00043835,2]
[360138849,1746563487884,-2176.79,0.00043835,2]
[360138850,1746563487893,-2176.79,0.00043835,2]
[360138851,1746563487902,-2176.79,0.00043835,2]
[360138852,1746563487912,-2176.79,0.00043835,2]
[360138853,1746563487921,-2176.79,0.00043835,2]
[360138854,1746563487930,-2176.79,0.00043835,2]
[360138855,1746563487940,-2176.79,0.00043835,2]
[360138856,1746563487951,-2176.79,0.00043835,2]
[360138857,1746563487961,-2176.79,0.00043835,2]
[360138858,1746563487970,-2176.79,0.00043835,2]
[360138859,1746563487980,-2176.79,0.00043835,2]
[360138860,1746563487989,-2176.79,0.00043835,2]
[360138861,1746563488000,-2176.79,0.00043835,2]
[360138862,1746563488010,-2176.79,0.00043835,2]
[360138863,1746563488019,-2176.79,0.00043835,2]
[360138864,1746563488028,-2176.79,0.00043835,2]
[360138865,1746563488039,-2176.79,0.00043835,2]
[360138866,1746563488048,-2176.7941634,0.00043835,2]
[360138867,1746563488058,-408.77249384,0.00043836,10]
[360138868,1746563488067,-2820.0108263,0.00043836,31]
[360138869,1746563488077,-2820.0108263,0.00043836,31]
[360138870,1746563488086,-2820.0108263,0.00043836,31]
[360138871,1746563488095,-2820.0108263,0.00043836,31]
[360138872,1746563488105,-2820.0108263,0.00043836,31]
[360138873,1746563488115,-2820.0108263,0.00043836,31]
[360138874,1746563488124,-2820.0108263,0.00043836,31]
[360138875,1746563488133,-2820.0108263,0.00043836,31]
[360138876,1746563488142,-2882.67773355,0.00043836,31]
[360138877,1746563488152,-2820.0108263,0.00043836,31]
[360138878,1746563488161,-2820.0108263,0.00043836,31]
[360138879,1746563488170,-2820.0108263,0.00043836,31]
[360138880,1746563488180,-2820.0108263,0.00043836,31]
[360138881,1746563488190,-2820.0108263,0.00043836,31]
[360138882,1746563488201,-2820.0108263,0.00043836,31]
[360138883,1746563488211,-2820.0108263,0.00043836,31]
[360138884,1746563488220,-2882.67773355,0.00043836,31]
[360138885,1746563488323,-2882.67773355,0.00043836,31]
[360138886,1746563488333,-2882.67773355,0.00043836,31]
[360138887,1746563488342,-2820.0108263,0.00043836,31]
[360138888,1746563488351,-2820.0108263,0.00043836,31]
[360138889,1746563488361,-2820.0108263,0.00043836,31]
[360138890,1746563488370,-2820.0108263,0.00043836,31]
[360138891,1746563488379,-2820.0108263,0.00043836,31]
[360138892,1746563488388,-2820.0108263,0.00043836,31]
[360138893,1746563488399,-2820.0108263,0.00043836,31]
[360138894,1746563488408,-2820.0108263,0.00043836,31]
[360138895,1746563488417,-2820.0108263,0.00043836,31]
[360138896,1746563488428,-2820.0108263,0.00043836,31]
[360138897,1746563488439,-2820.0108263,0.00043836,31]
[360138898,1746563488448,-2882.67773355,0.00043836,31]
[360138899,1746563488457,-2820.0108263,0.00043836,31]
[360138900,1746563488466,-777.77717951,0.00043836,31]
[360138901,1746563488475,-777.77717951,0.00043836,31]
[360138902,1746563488484,-777.77717951,0.00043836,31]
[360138903,1746563488493,-777.77717951,0.00043836,31]
[360138904,1746563488502,-777.77717951,0.00043836,31]
[360138905,1746563488512,-777.77717951,0.00043836,31]
[360138906,1746563488521,-777.77717951,0.00043836,31]
[360138907,1746563488530,-777.77717951,0.00043836,31]
[360138908,1746563488540,-777.77717951,0.00043836,31]
[360138909,1746563488549,-777.77717951,0.00043836,31]
[360138910,1746563488558,-777.77717951,0.00043836,31]
[360138911,1746563488567,-777.77717951,0.00043836,31]
[360138912,1746563488576,-777.77717951,0.00043836,31]
[360138913,1746563488586,-777.77717951,0.00043836,31]
[360138914,1746563488595,-777.77717951,0.00043836,31]
[360138915,1746563488605,-893.00342833,0.00043836,31]
[360138916,1746563488614,-893.00342833,0.00043836,31]
[360138917,1746563488624,-777.77717951,0.00043836,31]
[360138918,1746563488633,-777.77717951,0.00043836,31]
[360138919,1746563488643,-777.77717951,0.00043836,31]
[360138920,1746563488652,-777.77717951,0.00043836,31]
[360138921,1746563488662,-777.77717951,0.00043836,31]
[360138922,1746563488671,-893.00342833,0.00043836,31]
[360138923,1746563488680,-777.77717951,0.00043836,31]
[360138924,1746563488690,-777.77717951,0.00043836,31]
[360138925,1746563488700,-893.00342833,0.00043836,31]
[360138926,1746563488709,-777.77717951,0.00043836,31]
[360138927,1746563488719,-777.77717951,0.00043836,31]
[360138928,1746563488728,-893.00342833,0.00043836,31]
[360138929,1746563488738,-777.77717951,0.00043836,31]
[360138930,1746563488748,-777.77717951,0.00043836,31]
[360138931,1746563488758,-777.77717951,0.00043836,31]
[360138932,1746563488768,-777.77717951,0.00043836,31]
[360138933,1746563488777,-777.77717951,0.00043836,31]
[360138934,1746563488786,-777.77717951,0.00043836,31]
[360138935,1746563488796,-777.77717951,0.00043836,31]
[360138936,1746563488805,-777.77717951,0.00043836,31]
[360138937,1746563488814,-777.77717951,0.00043836,31]
[360138938,1746563488823,-777.77717951,0.00043836,31]
[360138939,1746563488833,-777.77717951,0.00043836,31]
[360138940,1746563488842,-777.77717951,0.00043836,31]
[360138941,1746563488851,-150.0,0.00043837,30]
[360138942,1746563488861,-150.0,0.00043855,30]
[360138943,1746563488870,-2000.0,0.00043862,30]
[360138944,1746563488880,-150.0,0.00043865,30]
[360138945,1746563488889,-150.0,0.00043865,30]
[360138946,1746563488899,-150.0,0.00043865,30]
[360138947,1746563488908,-514320.45684646,0.00043876,2]
[360138948,1746563488918,-2045.67210123,0.000439,30]
[360138949,1746563488927,-150.0,0.00043911,30]
[360138950,1746563488936,-150.0,0.00043941,30]
[360138951,1746563488947,-150.0,0.00043968,30]
[360138952,1746563488959,-437.0,0.00043986,90]
[360138953,1746563488968,-150.0,0.00043989,7]
[360138954,1746563488977,-50000.0,0.00044,44]
[360138955,1746563488986,-5000.0,0.00044,12]
[360138956,1746563488997,-1646.45550876,0.00044,18]
[360138957,1746563489006,-19035.27308661,0.00044,30]
[360138958,1746563489015,-685.21910096,0.00044,120]
[360138959,1746563489026,-10000.0,0.00044,20]
[360138960,1746563489039,-10023.85813951,0.00044,30]
[360138961,1746563489060,-422944.67290954,0.00044,120]
[360138962,1746563489078,-287950.45150086,0.00044,120]
[360138963,1746563489100,-98000.0,0.00044,15]
[360138964,1746563489116,-1042.02960203,0.00044,2]
[360138965,1746563489135,-250.0,0.00044,2]
[360138966,1746563489153,-473.2435869,0.00044,10]
[360138967,1746563489173,-1000.0,0.00044,120]
[360138968,1746563489192,-182.56360354,0.00044,60]
[360138969,1746563489210,-1300.0,0.00044,120]
[360138970,1746563489229,-271.19007249,0.00044,120]
[360138971,1746563489244,-1994.49195654,0.00044,120]
[360138972,1746563489263,-1000.0,0.00044,120]
[360138973,1746563489276,-1500.0,0.00044,120]
[360138974,1746563489293,-205.0,0.00044,30]
[360138975,1746563489308,-1601.41448259,0.00044,15]
[360138976,1746563489322,-142171.30531695,0.00044,30]
[360138977,1746563489337,-951.84691928,0.00044,3]
[360138978,1746563489352,-9605.38987548,0.00044,120]
[360138979,1746563489366,-8013.04555667,0.00044,30]
[360138980,1746563489381,-150.0,0.00044002,30]
[360138981,1746563489396,-300.0,0.00044009,30]
[360138982,1746563489411,-150.0,0.00044024,30]
[360138983,1746563489426,-150.0,0.00044046,30]
[360138984,1746563489442,-150.0,0.00044054,30]
[360138985,1746563489455,-150.0,0.00044054,30]
[360138986,1746563489471,-150.0,0.00044077,120]
[360138987,1746563489487,-150.0,0.0004408,30]
[360138988,1746563489502,-754.21572,0.00044088,30]
[360138989,1746563489517,-2110.0,0.00044095,30]
[360138990,1746563489533,-500.0,0.00044095,120]
[360138991,1746563489548,-500.0,0.00044095,120]
[360138992,1746563489563,-500.0,0.00044095,120]
[360138993,1746563489578,-500.0,0.00044095,120]
[360138994,1746563489593,-500.0,0.00044095,120]
[360138995,1746563489609,-500.0,0.00044095,120]
[360138996,1746563489624,-500.0,0.00044095,120]
[360138997,1746563489638,-475.57,0.00044095,120]
[360138998,1746563489653,-500.0,0.00044095,120]
[360138999,1746563489668,-500.0,0.00044095,120]
[360139000,1746563489682,-500.0,0.00044095,120]
[360139001,1746563489697,-500.0,0.00044095,120]
[360139002,1746563489711,-1000.0,0.000441,120]
[360139003,1746563489728,-160.0,0.000441,73]
[360139004,1746563489742,-974.54,0.00044134,2]
[360139005,1746563489757,-764.4,0.00044136,120]
[360139006,1746563489772,-764.4,0.00044136,120]
[360139007,1746563489787,-764.4,0.00044136,120]
[360139008,1746563489802,-764.4,0.00044136,120]
[360139009,1746563489817,-764.4,0.00044136,120]
[360139010,1746563489833,-764.4,0.00044136,120]
[360139011,1746563489847,-764.4,0.00044136,120]
[360139012,1746563489863,-764.4,0.00044136,120]
[360139013,1746563489878,-764.4,0.00044136,120]
[360139014,1746563489893,-764.4,0.00044136,120]
[360139015,1746563489908,-764.4,0.00044136,120]
[360139016,1746563489924,-764.4,0.00044136,120]
[360139017,1746563489939,-764.4,0.00044136,120]
[360139018,1746563489957,-764.4,0.00044136,120]
[360139019,1746563489972,-764.4,0.00044136,120]
[360139020,1746563489988,-764.4,0.00044136,120]
[360139021,1746563490003,-764.4,0.00044136,120]
[360139022,1746563490019,-764.4,0.00044136,120]
[360139023,1746563490033,-764.4,0.00044136,120]
[360139024,1746563490048,-764.4,0.00044136,120]
[360139025,1746563490063,-764.4,0.00044136,120]
[360139026,1746563490078,-764.4,0.00044136,120]
[360139027,1746563490093,-764.4,0.00044136,120]
[360139028,1746563490109,-764.45601516,0.00044136,120]
[360139029,1746563490125,-2000.0,0.00044136,30]
[360139030,1746563490142,-150.0,0.00044137,30]
[360139031,1746563490158,-150.0,0.00044138,30]
[360139032,1746563490316,-65932.68479073,0.0004414,30]
[360139033,1746563490339,-150.0,0.00044151,30]
[360139034,1746563490350,-150.0,0.00044193,30]
[360139035,1746563490360,-1000.0,0.000442,120]
[360139036,1746563490370,-222.22222,0.000442,120]
[360139037,1746563490380,-530.674743,0.0004421,10]
[360139038,1746563490389,-506709.0,0.0004424,30]
[360139039,1746563490398,-150.0,0.00044249,30]
[360139040,1746563490408,-150.0,0.00044255,120]
[360139041,1746563490418,-150.0,0.00044256,30]
[360139042,1746563490429,-150.0,0.00044275,30]
[360139043,1746563490439,-150.0,0.00044275,30]
[360139044,1746563490450,-150.0,0.00044275,30]
[360139045,1746563490459,-754.21572,0.00044288,30]
[360139046,1746563490469,-1000.0,0.000443,120]
[360139047,1746563490479,-150.0,0.00044306,30]
[360139048,1746563490488,-77387.82,0.0004432,30]
[360139049,1746563490498,-150.0,0.00044349,120]
[360139050,1746563490507,-150.0,0.00044361,30]
[360139051,1746563490517,-150.0,0.00044362,30]
[360139052,1746563490526,-2000.0,0.00044384,120]
[360139053,1746563490535,-3600.0,0.000444,2]
[360139054,1746563490545,-728.79922471,0.000444,120]
[360139055,1746563490554,-1087.87676844,0.000444,120]
[360139056,1746563490563,-1001425.0,0.000444,30]
[360139057,1746563490574,-150.0,0.00044401,30]
[360139058,1746563490584,-150.0,0.00044401,30]
[360139059,1746563490594,-3996.45592459,0.0004441,30]
[360139060,1746563490603,-122269.24221781,0.00044411,2]
[360139061,1746563490613,-1210.0,0.00044411,2]
[360139062,1746563490623,-704.82684611,0.00044411,2]
[360139063,1746563490633,-362.95201614,0.00044411,2]
[360139064,1746563490642,-349.05906064,0.00044411,2]
[360139065,1746563490651,-763.29527395,0.00044411,2]
[360139066,1746563490661,-22699.25625547,0.00044411,2]
[360139067,1746563490671,-1524.13530446,0.00044411,2]
[360139068,1746563490680,-1031.78123625,0.00044411,2]
[360139069,1746563490689,-5195.9138562,0.00044411,2]
[360139070,1746563490699,-2460.79184053,0.00044411,2]
[360139071,1746563490708,-2710.92470774,0.00044411,2]
[360139072,1746563490718,-216028.3792682,0.00044411,2]
[360139073,1746563490727,-151.63482208,0.00044411,2]
[360139074,1746563490737,-44029.47213385,0.00044411,2]
[360139075,1746563490747,-249.6757439,0.00044411,2]
[360139076,1746563490757,-164.778086,0.00044411,2]
[360139077,1746563490766,-1264.45161336,0.00044411,2]
[360139078,1746563490776,-7737.01645357,0.00044411,2]
[360139079,1746563490785,-29103.54156508,0.00044411,2]
[360139080,1746563490795,-1043.72281932,0.00044411,2]
[360139081,1746563490804,-32051.67410844,0.00044411,2]
[360139082,1746563490814,-596.09308057,0.00044411,2]
[360139083,1746563490823,-1314.45646597,0.00044411,2]
[360139084,1746563490833,-3426.30100623,0.00044411,2]
[360139085,1746563490843,-77157.37844034,0.00044411,2]
[360139086,1746563490852,-12859.49152843,0.00044411,2]
[360139087,1746563490861,-1924.3301192,0.00044411,2]
[360139088,1746563490871,-184.46685719,0.00044411,2]
[360139089,1746563490881,-5030.31865109,0.00044411,2]
[360139090,1746563490891,-643.0,0.00044411,2]
[360139091,1746563490900,-972.40818003,0.00044411,2]
[360139092,1746563490910,-25402.84219957,0.00044411,2]
[360139093,1746563490919,-574.46761371,0.00044411,2]
[360139094,1746563490929,-1840.26669701,0.00044411,2]
[360139095,1746563490938,-3249.34504979,0.00044411,2]
[360139096,1746563490949,-175.82474659,0.00044411,2]
[360139097,1746563490960,-7099.52922759,0.00044411,2]
[360139098,1746563490969,-550.0,0.00044411,2]
[360139099,1746563490979,-1470.03086485,0.00044411,2]
[360139100,1746563490988,-1010.65739478,0.00044411,2]
[360139101,1746563490999,-805.15882592,0.00044411,2]
[360139102,1746563491008,-10725.76586021,0.00044411,2]
[360139103,1746563491018,-170189.27629808,0.00044411,2]
[360139104,1746563491028,-14984.58723402,0.00044411,2]
[360139105,1746563491038,-229.55979716,0.00044411,2]
[360139106,1746563491048,-174.21710238,0.00044411,2]
[360139107,1746563491058,-6000.0,0.00044411,2]
[360139108,1746563491069,-376.42570907,0.00044411,2]
[360139109,1746563491079,-1474.44331597,0.00044411,2]
[360139110,1746563491088,-1036.21346178,0.00044411,2]
[360139111,1746563491097,-564.67136386,0.00044411,2]
[360139112,1746563491107,-150.0,0.00044411,2]
[360139113,1746563491117,-7790.84751844,0.00044411,2]
[360139114,1746563491126,-627.98951461,0.00044411,2]
[360139115,1746563491135,-215.27984949,0.00044411,2]
[360139116,1746563491145,-164668.70427398,0.00044411,2]
[360139117,1746563491155,-5020.40836326,0.00044411,2]
[360139118,1746563491165,-1014.46293342,0.00044411,2]
[360139119,1746563491174,-365.77117309,0.00044411,2]
[360139120,1746563491184,-2211.34812545,0.00044411,2]
[360139121,1746563491193,-284.45040605,0.00044411,2]
[360139122,1746563491203,-14815.4995285,0.00044411,2]
[360139123,1746563491212,-1841.4873753,0.00044411,2]
[360139124,1746563491222,-1120.52700023,0.00044411,2]
[360139125,1746563491232,-2559.75850523,0.00044411,2]
[360139126,1746563491241,-220.88836415,0.00044411,2]
[360139127,1746563491251,-14101.3496381,0.00044411,2]
[360139128,1746563491260,-20292.51254655,0.00044411,2]
[360139129,1746563491270,-1710.06181699,0.00044411,2]
[360139130,1746563491279,-1434.30223639,0.00044411,2]
[360139131,1746563491289,-203.24739152,0.00044411,2]
[360139132,1746563491298,-283.35396955,0.00044411,2]
[360139133,1746563491307,-5696.72490816,0.00044411,2]
[360139134,1746563491316,-1015.715949,0.00044411,2]
[360139135,1746563491326,-753.50675906,0.00044411,2]
[360139136,1746563491335,-162.91,0.00044411,2]
[360139137,1746563491344,-162.08334355,0.00044411,2]
[360139138,1746563491353,-2178.08988799,0.00044411,2]
[360139139,1746563491363,-150.0,0.00044411,2]
[360139140,1746563491372,-30000.0,0.00044411,2]
[360139141,1746563491381,-7499.09951189,0.00044411,2]
[360139142,1746563491390,-1025.70458528,0.00044411,2]
[360139143,1746563491399,-563.9160057,0.00044411,5]
[360139144,1746563491409,-1991.08150954,0.00044411,5]
[360139145,1746563491418,-980.02173643,0.00044411,5]
[360139146,1746563491427,-804.57603936,0.00044411,5]
[360139147,1746563491436,-594.01868178,0.00044411,5]
[360139148,1746563491445,-219.29956053,0.00044411,5]
[360139149,1746563491454,-1083.06319435,0.00044411,5]
[360139150,1746563491464,-800.0,0.00044411,5]
[360139151,1746563491473,-21800.0,0.00044411,7]
[360139152,1746563491483,-3180.09071462,0.00044411,15]
[360139153,1746563491492,-7915.74268797,0.00044411,7]
[360139154,1746563491501,-1028.95589652,0.00044411,15]
[360139155,1746563491510,-300.0,0.00044411,15]
[360139156,1746563491520,-3704.51010449,0.00044411,7]
[360139157,1746563491529,-2279.86622739,0.00044411,14]
[360139158,1746563491538,-1244.08844829,0.00044411,15]
[360139159,1746563491547,-2247.04924696,0.00044411,10]
[360139160,1746563491557,-2272.3886538,0.00044411,10]
[360139161,1746563491567,-3100.0,0.00044411,5]
[360139162,1746563491576,-18959.14189993,0.00044411,5]
[360139163,1746563491585,-10615.7606151,0.00044411,15]
[360139164,1746563491595,-184730.70775705,0.00044411,7]
[360139165,1746563491604,-24679.70314497,0.00044411,5]
[360139166,1746563491614,-2309.56587,0.00044411,7]
[360139167,1746563491624,-16568.11117208,0.00044411,20]
[360139168,1746563491633,-150.0,0.00044411,14]
[360139169,1746563491643,-621.41258647,0.00044411,6]
[360139170,1746563491653,-1038.442777,0.00044411,7]
[360139171,1746563491663,-465.70461425,0.00044411,7]
[360139172,1746563491673,-1877.75717592,0.00044411,2]
[360139173,1746563491682,-1000.0,0.00044411,2]
[360139174,1746563491691,-1500.0,0.00044411,2]
[360139175,1746563491701,-2000.0,0.00044411,2]
[360139176,1746563491710,-1000.0,0.00044411,5]
[360139177,1746563491719,-1500.0,0.00044411,5]
[360139178,1746563491729,-29917.47650895,0.00044411,10]
[360139179,1746563491738,-5079.60475863,0.00044411,14]
[360139180,1746563491748,-532.73321793,0.00044411,7]
[360139181,1746563491758,-901.99622612,0.00044411,2]
[360139182,1746563491767,-182.2802875,0.00044411,2]
[360139183,1746563491777,-22839.06263893,0.00044411,2]
[360139184,1746563491786,-1595.78464243,0.00044411,2]
[360139185,1746563491795,-10634.27962823,0.00044411,3]
[360139186,1746563491805,-14889.94847806,0.00044411,3]
[360139187,1746563491814,-500.0,0.00044411,10]
[360139188,1746563491823,-28109.73559341,0.00044411,3]
[360139189,1746563491834,-1284.53038366,0.00044411,4]
[360139190,1746563491843,-191.35113585,0.00044411,2]
[360139191,1746563491852,-451.28165411,0.00044411,2]
[360139192,1746563491861,-1070.03551582,0.00044411,2]
[360139193,1746563491870,-21328.87201318,0.00044411,2]
[360139194,1746563491880,-2500.0,0.00044411,2]
[360139195,1746563491889,-580.8985438,0.00044411,2]
[360139196,1746563491899,-343.15224859,0.00044411,2]
[360139197,1746563491910,-1100.0,0.00044411,2]
[360139198,1746563491919,-914.62291295,0.00044411,2]
[360139199,1746563491929,-482.873449,0.00044411,2]
[360139200,1746563491938,-275.17377321,0.00044411,10]
[360139201,1746563491951,-19034.50769068,0.00044411,3]
[360139202,1746563491960,-6780.68680144,0.00044411,4]
[360139203,1746563491969,-5203.90195826,0.00044411,4]
[360139204,1746563491978,-403.33386488,0.00044411,2]
[360139205,1746563491987,-150.0,0.00044411,2]
[360139206,1746563491997,-150.0,0.00044411,3]
[360139207,1746563492007,-275.0,0.00044411,14]
[360139208,1746563492016,-611.40689451,0.00044411,14]
[360139209,1746563492025,-200.0,0.00044411,7]
[360139210,1746563492037,-4590.74162175,0.00044411,2]
[360139211,1746563492046,-150.0,0.00044411,2]
[360139212,1746563492056,-150.0,0.00044411,2]
[360139213,1746563492065,-1899.11484891,0.00044411,7]
[360139214,1746563492075,-601.00669727,0.00044411,7]
[360139215,1746563492086,-500.0,0.00044411,7]
[360139216,1746563492095,-217.76409421,0.00044411,7]
[360139217,1746563492105,-1498.80564662,0.00044411,10]